[Event "EWIRCC 2019"]
[Site "Monte-Carlo"]
[Date "2019.11.30"]
[Round "3.8"]
[White "Socko, Monika"]
[Black "Solozhenkina, Elizaveta"]
[Result "0-1"]
[ECO "E05"]
[WhiteElo "2417"]
[BlackElo "2314"]
[Annotator "NA"]
[PlyCount "58"]
[EventDate "2019.11.28"]
[EventType "swiss"]
[EventCountry "MNC"]
[SourceTitle "playchess.com"]
[Source "ChessBase"]
[SourceQuality "1"]
[TimeControl "5400+30"]

1. d4 {[%emt 1:15:11]} Nf6 {[%emt 1:15:11]} 2. c4 {[%emt 0:00:21]} e6 {[%emt 0:00:21]} 3. Nf3 {[%emt 0:00:22]} d5 {[%emt 0:00:22]} 4. g3 {[%emt 0:00:22]} Be7 {[%emt 0:00:28]} 5. Bg2 {[%emt 0:00:22]} O-O {[%emt 0:00:23]} 6. O-O {[%emt 0:00:23]} dxc4 {[%emt 0:00:22]} 7. Ne5 {[%emt 0:00:21]} Nc6 {[%emt 0:00:30]} 8. Bxc6 {[%emt 0:00:22]} bxc6 {[%emt 0:00:21]} 9. Nxc6 {[%emt 0:00:22]} Qe8 {[%emt 0:00:25]} 10. Nxe7+ {[%emt 0:00:22]} Qxe7 {[%emt 0:00:22]} 11. Qc2 {[%emt 0:00:21]} c5 {[%emt 0:02:25]} 12. Qxc4 {[%emt 0:00:30]} cxd4 {[%emt 0:00:30]} 13. Qxd4 {[%emt 0:00:21]} Rd8 {[%emt 0:02:22]} 14. Qh4 {[%emt 0:01:00]} Rb8 {[%emt 0:01:06]} 15. Nc3 {[%emt 0:01:04]} Rb4 {[%emt 0:03:46]} 16. e4 {[%emt 0:00:41]} Bb7 {[%emt 0:02:26]} 17. f3 {[%emt 0:06:42]} Qc5+ {[%emt 0:01:13]} 18. Kg2 {[%emt 0:00:48]} Rd3 {[%emt 0:02:14]} 19. Rf2 {[%emt 0:03:22]} Qb6 {[%emt 0:02:33]} 20. a3 {[%emt 0:01:32]} Rc4 {[%emt 0:00:27]} 21. Bg5 {[%emt 0:02:59]} Nxe4 {[%emt 0:02:09]} 22. Nxe4 {[%emt 0:00:46]} Rxf3 {[%emt 0:00:27]} 23. Rxf3 {[%emt 0:02:15]} Rxe4 {[%emt 0:00:32]} 24. Bf4 {[%emt 0:00:46]} Re2+ {[%emt 0:00:30]} 25. Kh3 {[%emt 0:00:21]} Bxf3 {[%emt 0:00:26]} 26. Qe7 {[%emt 0:00:52]} Rxh2+ {[%emt 0:00:27]} 27. Kxh2 {[%emt 0:00:21]} Qf2+ {[%emt 0:00:21]} 28. Kh3 {[%emt 0:00:20]} Qg2+ {[%emt 0:00:21]} 29. Kh4 {[%emt 0:00:21]} Qh2+ {[%emt 0:00:21]} 0-1

[Event "EWIRCC 2019"]
[Site "Monte-Carlo"]
[Date "2019.11.30"]
[Round "3.9"]
[White "Reizniece-Ozola, Dana"]
[Black "Guichard, Pauline"]
[Result "0-1"]
[ECO "A18"]
[WhiteElo "2305"]
[BlackElo "2407"]
[Annotator "NA"]
[PlyCount "118"]
[EventDate "2019.11.28"]
[EventType "swiss"]
[EventCountry "MNC"]
[SourceTitle "playchess.com"]
[Source "ChessBase"]
[SourceQuality "1"]
[TimeControl "5400+30"]

1. c4 {[%emt 1:15:11]} Nf6 {[%emt 1:15:11]} 2. Nc3 {[%emt 0:00:26]} e6 {[%emt 0:00:22]} 3. e4 {[%emt 0:00:25]} d5 {[%emt 0:00:24]} 4. e5 {[%emt 0:00:22]} d4 {[%emt 0:00:24]} 5. exf6 {[%emt 0:00:22]} dxc3 {[%emt 0:00:22]} 6. bxc3 {[%emt 0:00:21]} Qxf6 {[%emt 0:00:23]} 7. Nf3 {[%emt 0:00:30]} b6 {[%emt 0:00:31]} 8. Be2 {[%emt 0:01:37]} Bb7 {[%emt 0:00:42]} 9. O-O {[%emt 0:00:29]} Bd6 {[%emt 0:00:49]} 10. d4 {[%emt 0:00:47]} O-O {[%emt 0:01:03]} 11. Be3 {[%emt 0:02:05]} Nd7 {[%emt 0:01:15]} 12. Qa4 {[%emt 0:00:41]} c6 {[%emt 0:03:52]} 13. Rab1 {[%emt 0:00:52]} Rfb8 {[%emt 0:01:42]} 14. c5 {[%emt 0:00:43]} Bc7 {[%emt 0:02:24]} 15. Rfd1 {[%emt 0:02:36]} h6 {[%emt 0:00:29]} 16. c4 {[%emt 0:01:54]} Rd8 {[%emt 0:01:05]} 17. d5 {[%emt 0:00:59]} exd5 {[%emt 0:00:38]} 18. cxd5 {[%emt 0:00:42]} cxd5 {[%emt 0:00:34]} 19. Bd4 {[%emt 0:01:31]} Qe6 {[%emt 0:03:39]} 20. Re1 {[%emt 0:00:22]} Bc6 {[%emt 0:01:11]} 21. Bb5 {[%emt 0:01:15]} Bxb5 {[%emt 0:00:22]} 22. Qxb5 {[%emt 0:00:23]} Qf5 {[%emt 0:00:47]} 23. c6 {[%emt 0:00:53]} Nf6 {[%emt 0:01:00]} 24. Re7 {[%emt 0:00:58]} Rac8 {[%emt 0:00:49]} 25. Qb2 {[%emt 0:03:05]} Bd6 {[%emt 0:01:05]} 26. Rxa7 {[%emt 0:00:55]} Rxc6 {[%emt 0:00:23]} 27. Bxf6 {[%emt 0:01:26]} Qxf6 {[%emt 0:00:39]} 28. Qxf6 {[%emt 0:00:22]} gxf6 {[%emt 0:00:21]} 29. Nd4 {[%emt 0:00:21]} Rc7 {[%emt 0:00:25]} 30. Ra6 {[%emt 0:01:41]} Bc5 {[%emt 0:00:23]} 31. Nf5 {[%emt 0:00:25]} Kh7 {[%emt 0:01:00]} 32. Ra4 {[%emt 0:00:42]} Kg6 {[%emt 0:00:59]} 33. Nh4+ {[%emt 0:00:25]} Kh5 {[%emt 0:00:30]} 34. Nf5 {[%emt 0:00:33]} Kg5 {[%emt 0:00:28]} 35. Ng3 {[%emt 0:00:32]} h5 {[%emt 0:00:34]} 36. h4+ {[%emt 0:00:22]} Kg6 {[%emt 0:00:22]} 37. Rf4 {[%emt 0:00:42]} Re7 {[%emt 0:00:29]} 38. Nf5 {[%emt 0:00:29]} Re5 {[%emt 0:00:54]} 39. Rb3 {[%emt 0:00:21]} Rxf5 {[%emt 0:00:47]} 40. Rg3+ {[%emt 0:00:21]} Rg5 {[%emt 0:00:21]} 41. hxg5 {[%emt 0:00:22]} fxg5 {[%emt 0:00:21]} 42. Ra4 {[%emt 0:00:27]} Re8 {[%emt 0:00:26]} 43. Rd3 {[%emt 0:00:29]} Re1+ {[%emt 0:00:32]} 44. Kh2 {[%emt 0:00:21]} Bxf2 {[%emt 0:00:28]} 45. g3 {[%emt 0:00:43]} f6 {[%emt 0:00:47]} 46. Kg2 {[%emt 0:00:24]} Bc5 {[%emt 0:00:26]} 47. Rxd5 {[%emt 0:00:44]} Re2+ {[%emt 0:00:27]} 48. Kh1 {[%emt 0:00:53]} Re3 {[%emt 0:00:25]} 49. Kg2 {[%emt 0:00:24]} Re2+ {[%emt 0:00:28]} 50. Kh1 {[%emt 0:00:21]} g4 {[%emt 0:00:21]} 51. Rd3 {[%emt 0:00:28]} Kg5 {[%emt 0:00:39]} 52. Ra8 {[%emt 0:00:42]} Kf5 {[%emt 0:00:45]} 53. a4 {[%emt 0:00:29]} Ke4 {[%emt 0:00:31]} 54. Rb3 {[%emt 0:00:36]} Be3 {[%emt 0:00:21]} 55. Rf8 {[%emt 0:00:37]} Kf3 {[%emt 0:00:28]} 56. Re8 {[%emt 0:00:38]} f5 {[%emt 0:00:38]} 57. Ra3 {[%emt 0:00:27]} f4 {[%emt 0:00:25]} 58. gxf4 {[%emt 0:00:21]} Re1+ {[%emt 0:00:21]} 59. Kh2 {[%emt 0:00:23]} g3+ {[%emt 0:00:21]} 0-1

[Event "EWIRCC 2019"]
[Site "Monte-Carlo"]
[Date "2019.11.30"]
[Round "3.10"]
[White "Mkrtchian, Lilit"]
[Black "Benmesbah, Natacha"]
[Result "1/2-1/2"]
[ECO "A30"]
[WhiteElo "2402"]
[BlackElo "2265"]
[Annotator "NA"]
[PlyCount "110"]
[EventDate "2019.11.28"]
[EventType "swiss"]
[EventCountry "MNC"]
[SourceTitle "playchess.com"]
[Source "ChessBase"]
[SourceQuality "1"]
[TimeControl "5400+30"]

1. c4 {[%emt 1:15:12]} Nf6 {[%emt 1:15:12]} 2. Nc3 {[%emt 0:00:22]} c5 {[%emt 0:00:26]} 3. g3 {[%emt 0:00:24]} e6 {[%emt 0:00:52]} 4. Nf3 {[%emt 0:00:25]} b6 {[%emt 0:00:51]} 5. Bg2 {[%emt 0:00:24]} Bb7 {[%emt 0:00:21]} 6. O-O {[%emt 0:00:23]} Be7 {[%emt 0:00:25]} 7. d4 {[%emt 0:00:53]} cxd4 {[%emt 0:00:28]} 8. Qxd4 {[%emt 0:00:22]} O-O {[%emt 0:00:30]} 9. Bg5 {[%emt 0:00:31]} d6 {[%emt 0:01:12]} 10. Rfd1 {[%emt 0:03:33]} Nbd7 {[%emt 0:01:59]} 11. Rac1 {[%emt 0:03:10]} a6 {[%emt 0:01:55]} 12. b3 {[%emt 0:01:28]} Qc7 {[%emt 0:00:22]} 13. Qe3 {[%emt 0:00:37]} Rfe8 {[%emt 0:01:15]} 14. Nd4 {[%emt 0:00:47]} Bxg2 {[%emt 0:01:53]} 15. Kxg2 {[%emt 0:00:23]} Rad8 {[%emt 0:00:36]} 16. Bxf6 {[%emt 0:01:00]} Nxf6 {[%emt 0:00:49]} 17. Qf3 {[%emt 0:00:34]} Bf8 {[%emt 0:01:00]} 18. Qc6 {[%emt 0:04:21]} Qxc6+ {[%emt 0:08:54]} 19. Nxc6 {[%emt 0:00:22]} Rc8 {[%emt 0:00:00]} 20. Nd4 {[%emt 0:00:39]} g6 {[%emt 0:00:00]} 21. e3 {[%emt 0:01:09]} h5 {[%emt 0:00:00]} 22. h3 {[%emt 0:00:33]} Rc7 {[%emt 0:00:00]} 23. Nde2 {[%emt 0:01:03]} Rb8 {[%emt 0:00:00]} 24. a4 {[%emt 0:00:26]} Rbc8 {[%emt 0:00:00]} 25. Rd3 {[%emt 0:01:32]} Nd7 {[%emt 0:00:00]} 26. Rb1 {[%emt 0:00:36]} Ne5 {[%emt 0:00:22]} 27. Rdd1 {[%emt 0:00:31]} d5 {[%emt 0:01:20]} 28. f4 {[%emt 0:00:49]} Nd7 {[%emt 0:00:28]} 29. cxd5 {[%emt 0:00:45]} Rxc3 {[%emt 0:01:13]} 30. dxe6 {[%emt 0:00:25]} Nf6 {[%emt 0:00:32]} 31. exf7+ {[%emt 0:00:27]} Kxf7 {[%emt 0:00:22]} 32. Nxc3 {[%emt 0:00:23]} Rxc3 {[%emt 0:00:22]} 33. Rbc1 {[%emt 0:01:12]} Rxe3 {[%emt 0:00:42]} 34. Rc7+ {[%emt 0:00:25]} Be7 {[%emt 0:00:25]} 35. Rb7 {[%emt 0:01:04]} Rxb3 {[%emt 0:00:23]} 36. Re1 {[%emt 0:00:22]} Ng8 {[%emt 0:00:39]} 37. g4 {[%emt 0:00:27]} hxg4 {[%emt 0:00:36]} 38. hxg4 {[%emt 0:00:21]} Rb4 {[%emt 0:00:21]} 39. Kf3 {[%emt 0:00:26]} Rxa4 {[%emt 0:00:37]} 40. Rxb6 {[%emt 0:00:23]} Ra3+ {[%emt 0:00:22]} 41. Kg2 {[%emt 0:00:25]} a5 {[%emt 0:01:19]} 42. Rb7 {[%emt 0:00:32]} a4 {[%emt 0:00:29]} 43. Re5 {[%emt 0:00:42]} Ra2+ {[%emt 0:00:47]} 44. Kf3 {[%emt 0:00:21]} a3 {[%emt 0:00:21]} 45. Ra5 {[%emt 0:00:21]} Rb2 {[%emt 0:00:51]} 46. Rba7 {[%emt 0:00:24]} Rb3+ {[%emt 0:00:25]} 47. Ke2 {[%emt 0:00:46]} Nf6 {[%emt 0:00:52]} 48. Re5 {[%emt 0:00:27]} Ng8 {[%emt 0:00:31]} 49. g5 {[%emt 0:00:42]} Rb6 {[%emt 0:00:42]} 50. f5 {[%emt 0:00:35]} gxf5 {[%emt 0:00:21]} 51. Rxf5+ {[%emt 0:00:21]} Kg6 {[%emt 0:00:43]} 52. Rfa5 {[%emt 0:00:26]} Re6+ {[%emt 0:00:38]} 53. Kd3 {[%emt 0:00:23]} Bxg5 {[%emt 0:00:31]} 54. R7a6 {[%emt 0:00:50]} Rxa6 {[%emt 0:00:25]} 55. Rxa6+ {[%emt 0:00:21]} Nf6 {[%emt 0:00:51] Ke4} 1/2-1/2

[Event "EWIRCC 2019"]
[Site "Monte-Carlo"]
[Date "2019.11.30"]
[Round "3.11"]
[White "Muzychuk, Anna"]
[Black "Muetsch, Annmarie"]
[Result "1-0"]
[ECO "B31"]
[WhiteElo "2543"]
[BlackElo "2240"]
[Annotator "ChessBase"]
[PlyCount "47"]
[EventDate "2019.11.28"]
[EventType "swiss"]
[EventCountry "MNC"]
[SourceTitle "playchess.com"]
[Source "ChessBase"]
[SourceQuality "1"]
[TimeControl "5400+30"]

1. e4 {[%emt 1:15:11]} c5 {[%emt 1:15:11]} 2. Nf3 {[%emt 0:00:23]} Nc6 {[%emt 0:00:25]} 3. Bb5 {[%emt 0:00:22]} g6 {[%emt 0:00:21]} 4. O-O {[%emt 0:00:23]} Bg7 {[%emt 0:00:22]} 5. c3 {[%emt 0:00:24]} e5 {[%emt 0:00:27]} 6. d4 {[%emt 0:00:41]} cxd4 {[%emt 0:00:32]} 7. cxd4 {[%emt 0:00:22]} Nxd4 {[%emt 0:01:05]} 8. Nxd4 {[%emt 0:00:36]} exd4 {[%emt 0:00:22]} 9. Bf4 {[%emt 0:00:32]} Qf6 {[%emt 0:02:35]} 10. Qd2 {[%emt 0:01:04]} Ne7 {[%emt 0:01:12]} 11. Na3 {[%emt 0:00:24]} a6 {[%emt 0:01:26]} 12. Bg5 {[%emt 0:01:22]} Qe6 {[%emt 0:01:24]} 13. Bc4 {[%emt 0:00:26]} Qd6 {[%emt 0:00:27]} 14. e5 {[%emt 0:00:34]} Bxe5 {[%emt 0:02:16]} 15. Rae1 {[%emt 0:01:34]} Bf6 {[%emt 0:01:47]} 16. Bxf7+ {[%emt 0:09:20]} Kxf7 {[%emt 0:02:05]} 17. Nc4 {[%emt 0:00:21]} Qc5 {[%emt 0:01:48]} 18. Bxf6 {[%emt 0:01:15]} Kxf6 {[%emt 0:02:57]} 19. Re5 {[%emt 0:00:39]} d5 {[%emt 0:00:41]} 20. b4 {[%emt 0:00:27]} Qc7 {[%emt 0:00:55]} 21. Qf4+ {[%emt 0:02:32]} Kg7 {[%emt 0:00:21]} 22. Qxd4 {[%emt 0:00:36]} Kg8 {[%emt 0:00:34]} 23. Nb6 {[%emt 0:00:30]} Rb8 {[%emt 0:00:43]} 24. Rfe1 {[%emt 0:00:21]} 1-0

[Event "EWIRCC 2019"]
[Site "Monte-Carlo"]
[Date "2019.11.30"]
[Round "3.12"]
[White "Bensdorp-De Labaca, Marlies"]
[Black "Sebag, Marie"]
[Result "1/2-1/2"]
[ECO "D12"]
[WhiteElo "2228"]
[BlackElo "2443"]
[Annotator "NA"]
[PlyCount "109"]
[EventDate "2019.11.28"]
[EventType "swiss"]
[EventCountry "MNC"]
[SourceTitle "playchess.com"]
[Source "ChessBase"]
[SourceQuality "1"]
[TimeControl "5400+30"]

1. d4 {[%emt 1:15:11]} d5 {[%emt 1:15:11]} 2. c4 {[%emt 0:00:22]} c6 {[%emt 0:00:24]} 3. Nf3 {[%emt 0:00:23]} Nf6 {[%emt 0:00:21]} 4. e3 {[%emt 0:00:25]} Bf5 {[%emt 0:00:23]} 5. Nc3 {[%emt 0:00:30]} e6 {[%emt 0:00:23]} 6. Bd3 {[%emt 0:00:31]} Bxd3 {[%emt 0:00:44]} 7. Qxd3 {[%emt 0:00:22]} Bb4 {[%emt 0:00:37]} 8. O-O {[%emt 0:00:23]} O-O {[%emt 0:00:22]} 9. a3 {[%emt 0:00:23]} Be7 {[%emt 0:00:34]} 10. b4 {[%emt 0:00:40]} Nbd7 {[%emt 0:00:32]} 11. Rd1 {[%emt 0:01:43]} Qc7 {[%emt 0:01:02]} 12. e4 {[%emt 0:00:38]} dxe4 {[%emt 0:01:37]} 13. Nxe4 {[%emt 0:00:22]} Nxe4 {[%emt 0:00:39]} 14. Qxe4 {[%emt 0:00:22]} a5 {[%emt 0:00:55]} 15. Bd2 {[%emt 0:00:57]} axb4 {[%emt 0:01:00]} 16. axb4 {[%emt 0:00:22]} Qb6 {[%emt 0:00:45]} 17. Qe1 {[%emt 0:00:48]} Nf6 {[%emt 0:01:59]} 18. Bc3 {[%emt 0:00:40]} Qc7 {[%emt 0:01:40]} 19. h3 {[%emt 0:04:03]} h6 {[%emt 0:00:33]} 20. Ne5 {[%emt 0:00:48]} Rfd8 {[%emt 0:00:33]} 21. Rxa8 {[%emt 0:10:37]} Rxa8 {[%emt 0:00:22]} 22. Ra1 {[%emt 0:00:00]} Rd8 {[%emt 0:01:16]} 23. Qe2 {[%emt 0:00:00]} Nd7 {[%emt 0:00:50]} 24. Ng4 {[%emt 0:00:00]} h5 {[%emt 0:01:33]} 25. Ne3 {[%emt 0:00:00]} Nf6 {[%emt 0:00:28]} 26. Qf3 {[%emt 0:00:00]} Qb6 {[%emt 0:01:26]} 27. Ra4 {[%emt 0:00:00]} Qc7 {[%emt 0:00:49]} 28. Ra7 {[%emt 0:00:00]} Qb8 {[%emt 0:00:58]} 29. Ra5 {[%emt 0:00:00]} Qc7 {[%emt 0:00:34]} 30. b5 {[%emt 0:00:00]} Rxd4 {[%emt 0:01:21]} 31. bxc6 {[%emt 0:00:06]} bxc6 {[%emt 0:00:49]} 32. Bxd4 {[%emt 0:01:37]} Qxa5 {[%emt 0:00:22]} 33. Bxf6 {[%emt 0:01:05]} Bxf6 {[%emt 0:01:00]} 34. Qxc6 {[%emt 0:00:23]} Qe1+ {[%emt 0:00:37]} 35. Nf1 {[%emt 0:00:32]} g6 {[%emt 0:00:34]} 36. Qd7 {[%emt 0:01:51]} Qc3 {[%emt 0:01:33]} 37. Qe8+ {[%emt 0:01:54]} Kg7 {[%emt 0:00:22]} 38. Qa4 {[%emt 0:00:33]} Bd4 {[%emt 0:00:33]} 39. Qa2 {[%emt 0:00:22]} Qd3 {[%emt 0:02:35]} 40. h4 {[%emt 0:00:41]} e5 {[%emt 0:00:53]} 41. Nh2 {[%emt 0:00:45]} e4 {[%emt 0:00:44]} 42. Nf1 {[%emt 0:00:21]} Bc5 {[%emt 0:00:42]} 43. g3 {[%emt 0:00:21]} Bd4 {[%emt 0:00:36]} 44. Kg2 {[%emt 0:00:31]} Qf3+ {[%emt 0:00:29]} 45. Kg1 {[%emt 0:00:21]} f5 {[%emt 0:00:29]} 46. Qd2 {[%emt 0:00:32]} Qc3 {[%emt 0:00:32]} 47. Qxc3 {[%emt 0:00:23]} Bxc3 {[%emt 0:00:21]} 48. Ne3 {[%emt 0:00:22]} Bd4 {[%emt 0:00:23]} 49. Nd5 {[%emt 0:00:28]} Kf7 {[%emt 0:00:22]} 50. Kf1 {[%emt 0:00:21]} Be5 {[%emt 0:00:36]} 51. Ke2 {[%emt 0:00:25]} Bd4 {[%emt 0:00:26]} 52. Nf4 {[%emt 0:00:25]} Kf6 {[%emt 0:00:28]} 53. Nd5+ {[%emt 0:00:22]} Ke5 {[%emt 0:00:27]} 54. Nf4 {[%emt 0:00:22]} Kf6 {[%emt 0:00:21]} 55. Nd5+ {[%emt 0:00:21]} 1/2-1/2

[Event "EWIRCC 2019"]
[Site "Monte-Carlo"]
[Date "2019.11.30"]
[Round "3.13"]
[White "Gunina, Valentina"]
[Black "Michna, Marta"]
[Result "1-0"]
[ECO "E94"]
[WhiteElo "2509"]
[BlackElo "2366"]
[Annotator "ChessBase"]
[PlyCount "57"]
[EventDate "2019.11.28"]
[EventType "swiss"]
[EventCountry "MNC"]
[SourceTitle "playchess.com"]
[Source "ChessBase"]
[SourceQuality "1"]
[TimeControl "5400+30"]

1. d4 {[%emt 1:15:12]} Nf6 {[%emt 1:15:11]} 2. c4 {[%emt 0:00:21]} d6 {[%emt 0:00:21]} 3. Nc3 {[%emt 0:00:24]} Nbd7 {[%emt 0:00:22]} 4. e4 {[%emt 0:00:22]} e5 {[%emt 0:00:21]} 5. Nf3 {[%emt 0:00:22]} g6 {[%emt 0:00:24]} 6. Be2 {[%emt 0:00:25]} Bg7 {[%emt 0:00:20]} 7. Be3 {[%emt 0:00:43]} O-O {[%emt 0:00:23]} 8. h3 {[%emt 0:00:37]} c6 {[%emt 0:00:25]} 9. O-O {[%emt 0:00:30]} Re8 {[%emt 0:00:57]} 10. d5 {[%emt 0:00:58]} c5 {[%emt 0:01:33]} 11. Ne1 {[%emt 0:00:30]} h6 {[%emt 0:00:54]} 12. Qd2 {[%emt 0:00:24]} Kh7 {[%emt 0:00:20]} 13. Nd3 {[%emt 0:00:23]} Nf8 {[%emt 0:02:30]} 14. f4 {[%emt 0:02:17]} exf4 {[%emt 0:00:22]} 15. Rxf4 {[%emt 0:00:23]} g5 {[%emt 0:00:21]} 16. Rf2 {[%emt 0:00:27]} Ng6 {[%emt 0:00:31]} 17. Raf1 {[%emt 0:00:31]} Nxe4 {[%emt 0:01:57]} 18. Nxe4 {[%emt 0:00:22]} Rxe4 {[%emt 0:00:21]} 19. Rxf7 {[%emt 0:00:37]} Kg8 {[%emt 0:02:21]} 20. Bh5 {[%emt 0:00:44]} Nh8 {[%emt 0:01:02]} 21. Rxg7+ {[%emt 0:00:30]} Kxg7 {[%emt 0:00:21]} 22. Nxc5 {[%emt 0:00:26]} dxc5 {[%emt 0:01:04]} 23. Bxc5 {[%emt 0:00:35]} Rxc4 {[%emt 0:05:09]} 24. Bf8+ {[%emt 0:01:22]} Kg8 {[%emt 0:01:52]} 25. d6 {[%emt 0:00:23]} Be6 {[%emt 0:00:53]} 26. Bxh6 {[%emt 0:00:45]} Nf7 {[%emt 0:01:01]} 27. Qd3 {[%emt 0:00:23]} Ne5 {[%emt 0:00:45]} 28. Qg3 {[%emt 0:00:22]} Qxd6 {[%emt 0:01:39]} 29. Qxg5+ {[%emt 0:00:26]} 1-0

[Event "EWIRCC 2019"]
[Site "Monte-Carlo"]
[Date "2019.11.30"]
[Round "3.14"]
[White "Batsiashvili, Nino"]
[Black "Novkovic, Julia"]
[Result "1-0"]
[ECO "A42"]
[WhiteElo "2422"]
[BlackElo "2161"]
[Annotator "NA"]
[PlyCount "59"]
[EventDate "2019.11.28"]
[EventType "swiss"]
[EventCountry "MNC"]
[SourceTitle "playchess.com"]
[Source "ChessBase"]
[SourceQuality "1"]
[TimeControl "5400+30"]

1. d4 {[%emt 1:15:13]} g6 {[%emt 1:15:11]} 2. c4 {[%emt 0:00:21]} Bg7 {[%emt 0:00:20]} 3. Nc3 {[%emt 0:00:22]} d6 {[%emt 0:00:21]} 4. e4 {[%emt 0:00:24]} e5 {[%emt 0:00:23]} 5. Nge2 {[%emt 0:00:43]} Nc6 {[%emt 0:00:44]} 6. d5 {[%emt 0:00:31]} Nce7 {[%emt 0:00:55]} 7. h4 {[%emt 0:00:44]} f5 {[%emt 0:01:12]} 8. h5 {[%emt 0:00:29]} f4 {[%emt 0:00:58]} 9. hxg6 {[%emt 0:00:43]} hxg6 {[%emt 0:00:22]} 10. Rxh8 {[%emt 0:00:22]} Bxh8 {[%emt 0:00:21]} 11. Bd2 {[%emt 0:00:33]} Nf6 {[%emt 0:01:13]} 12. Nc1 {[%emt 0:01:31]} Bg7 {[%emt 0:00:50]} 13. Nd3 {[%emt 0:00:33]} a6 {[%emt 0:00:55]} 14. Qc2 {[%emt 0:00:32]} Kf7 {[%emt 0:00:52]} 15. O-O-O {[%emt 0:01:21]} Ng4 {[%emt 0:00:31]} 16. Be2 {[%emt 0:00:41]} Qh8 {[%emt 0:00:27]} 17. Kb1 {[%emt 0:00:57]} Qh2 {[%emt 0:00:29]} 18. Bf3 {[%emt 0:00:23]} Bd7 {[%emt 0:00:34]} 19. c5 {[%emt 0:01:00]} Qh4 {[%emt 0:00:55]} 20. Be1 {[%emt 0:00:25]} Nh2 {[%emt 0:01:13]} 21. Qb3 {[%emt 0:00:26]} Rb8 {[%emt 0:00:57]} 22. cxd6 {[%emt 0:00:40]} cxd6 {[%emt 0:00:21]} 23. Qb6 {[%emt 0:00:21]} Qf6 {[%emt 0:07:50]} 24. Qc7 {[%emt 0:00:32]} Bg4 {[%emt 0:02:11]} 25. Bxg4 {[%emt 0:00:31]} Nxg4 {[%emt 0:00:59]} 26. Qxb8 {[%emt 0:00:22]} f3 {[%emt 0:00:23]} 27. g3 {[%emt 0:00:54]} Bh6 {[%emt 0:00:27]} 28. Qxb7 {[%emt 0:00:30]} Bg5 {[%emt 0:00:40]} 29. Qxa6 {[%emt 0:00:35]} Nxd5 30. exd5 {[%emt 0:00:31]} 1-0

[Event "EWIRCC 2019"]
[Site "Monte-Carlo"]
[Date "2019.11.30"]
[Round "3.15"]
[White "Kashlinskaya, Alina"]
[Black "Dornbusch, Tatiana"]
[Result "1-0"]
[ECO "A59"]
[WhiteElo "2486"]
[BlackElo "2269"]
[Annotator "ChessBase"]
[PlyCount "61"]
[EventDate "2019.11.28"]
[EventType "swiss"]
[EventCountry "MNC"]
[SourceTitle "playchess.com"]
[Source "ChessBase"]
[SourceQuality "1"]
[TimeControl "5400+30"]

1. d4 {[%emt 1:15:11]} Nf6 {[%emt 1:15:11]} 2. c4 {[%emt 0:00:22]} c5 {[%emt 0:00:22]} 3. d5 {[%emt 0:00:22]} b5 {[%emt 0:00:21]} 4. cxb5 {[%emt 0:00:21]} a6 {[%emt 0:00:22]} 5. bxa6 {[%emt 0:00:22]} g6 {[%emt 0:00:21]} 6. Nc3 {[%emt 0:00:22]} Bxa6 {[%emt 0:00:22]} 7. e4 {[%emt 0:00:24]} Bxf1 {[%emt 0:00:25]} 8. Kxf1 {[%emt 0:00:22]} d6 {[%emt 0:00:23]} 9. Nf3 {[%emt 0:00:22]} Bg7 {[%emt 0:00:22]} 10. g3 {[%emt 0:00:22]} O-O {[%emt 0:00:27]} 11. Kg2 {[%emt 0:00:22]} Nbd7 {[%emt 0:00:24]} 12. a4 {[%emt 0:00:23]} Ng4 {[%emt 0:02:31]} 13. Qe2 {[%emt 0:01:09]} Qa5 {[%emt 0:02:11]} 14. Nd2 {[%emt 0:04:38]} Ngf6 {[%emt 0:00:42]} 15. Nc4 {[%emt 0:00:28]} Qa6 {[%emt 0:00:24]} 16. Nb5 {[%emt 0:00:31]} Rfc8 {[%emt 0:00:54]} 17. Bd2 {[%emt 0:00:47]} Nb6 {[%emt 0:01:14]} 18. b3 {[%emt 0:01:20]} Ne8 {[%emt 0:02:20]} 19. Ra2 {[%emt 0:03:22]} Nc7 {[%emt 0:00:57]} 20. Nxc7 {[%emt 0:00:22]} Rxc7 {[%emt 0:00:28]} 21. Ba5 {[%emt 0:01:14]} Nxc4 {[%emt 0:06:05]} 22. Bxc7 {[%emt 0:00:23]} Ne5 {[%emt 0:01:13]} 23. Qxa6 {[%emt 0:00:24]} Rxa6 {[%emt 0:00:21]} 24. a5 {[%emt 0:00:27]} Nd7 {[%emt 0:00:29]} 25. Rc1 {[%emt 0:01:31]} Bd4 {[%emt 0:01:10]} 26. Ra4 {[%emt 0:01:15]} Ra7 {[%emt 0:00:56]} 27. Bb6 {[%emt 0:01:24]} Ra6 {[%emt 0:00:31]} 28. Rxd4 {[%emt 0:00:57]} cxd4 {[%emt 0:00:48]} 29. Rc8+ {[%emt 0:00:22]} Kg7 {[%emt 0:01:05]} 30. Bxd4+ {[%emt 0:00:24]} f6 {[%emt 0:00:28]} 31. b4 {[%emt 0:00:28]} 1-0

[Event "EWIRCC 2019"]
[Site "Monte-Carlo"]
[Date "2019.11.30"]
[Round "3.17"]
[White "Kurapova, Olga"]
[Black "Cramling, Pia"]
[Result "0-1"]
[ECO "E38"]
[WhiteElo "1925"]
[BlackElo "2443"]
[Annotator "NA"]
[PlyCount "52"]
[EventDate "2019.11.28"]
[EventType "swiss"]
[EventCountry "MNC"]
[SourceTitle "playchess.com"]
[Source "ChessBase"]
[SourceQuality "1"]
[TimeControl "5400+30"]

1. d4 {[%emt 1:15:11]} Nf6 {[%emt 1:15:11]} 2. c4 {[%emt 0:00:22]} e6 {[%emt 0:00:21]} 3. Nc3 {[%emt 0:00:21]} Bb4 {[%emt 0:00:21]} 4. Qc2 {[%emt 0:00:21]} c5 {[%emt 0:00:27]} 5. dxc5 {[%emt 0:00:22]} Bxc5 {[%emt 0:00:29]} 6. Bg5 {[%emt 0:00:28]} Bxf2+ {[%emt 0:00:44]} 7. Kxf2 {[%emt 0:01:27]} Ng4+ {[%emt 0:00:23]} 8. Ke1 {[%emt 0:00:21]} Qxg5 {[%emt 0:00:26]} 9. Nf3 {[%emt 0:00:30]} Qe3 {[%emt 0:01:23]} 10. Ne4 {[%emt 0:01:17]} f5 {[%emt 0:00:42]} 11. Nd6+ {[%emt 0:01:04]} Ke7 {[%emt 0:00:29]} 12. Nxc8+ {[%emt 0:01:14]} Rxc8 {[%emt 0:00:23]} 13. Qb3 {[%emt 0:01:05]} Na6 {[%emt 0:01:57]} 14. Rd1 {[%emt 0:02:48]} Nc5 {[%emt 0:01:18]} 15. Qxe3 {[%emt 0:03:09]} Nxe3 {[%emt 0:00:22]} 16. Rc1 {[%emt 0:00:29]} Ne4 {[%emt 0:00:28]} 17. b3 {[%emt 0:01:01]} b5 {[%emt 0:00:53]} 18. Nd2 {[%emt 0:00:32]} bxc4 {[%emt 0:01:14]} 19. bxc4 {[%emt 0:00:50]} Rab8 {[%emt 0:01:34]} 20. h4 {[%emt 0:01:45]} Nxd2 {[%emt 0:01:22]} 21. Kxd2 {[%emt 0:00:33]} Nxc4+ {[%emt 0:00:22]} 22. Ke1 {[%emt 0:00:47]} Ne3 {[%emt 0:01:06]} 23. Rxc8 {[%emt 0:01:06]} Rxc8 {[%emt 0:00:23]} 24. Rh3 {[%emt 0:00:49]} f4 {[%emt 0:00:25]} 25. Rf3 {[%emt 0:00:59]} Rc1+ {[%emt 0:00:33]} 26. Kf2 {[%emt 0:00:24]} Rxf1# {[%emt 0:09:44]} 0-1